[Event "Titled Tuesday Blitz February 15 Early 2022"]
[White "Volkov, Maksim"]
[Black "Shukhman, Anna"]
[WhiteFideId "54123070"]
[BlackFideId "54180058"]
[WhiteElo "2081"]
[BlackElo "1628"]
[Result "0-1"]
[Round "08"]
[TimeControl "180+1"]
[Date "2022.02.15"]
[WhiteClock "0:00:07"]
[BlackClock "0:00:31"]

1. d4 {[%clk 0:02:31]}  Nf6 {[%clk 0:02:55]} 2. c4 {[%clk 0:02:30]}  g6 {[%clk 0:02:54]} 3. g3 {[%clk 0:02:29]}  Bg7 {[%clk 0:02:54]} 4. Bg2 {[%clk 0:02:28]}  d5 {[%clk 0:02:54]} 5. Qa4+ {[%clk 0:02:23]}  Nc6 {[%clk 0:02:39]} 6. Nc3 {[%clk 0:02:16]}  Be6 {[%clk 0:02:16]} 7. cxd5 {[%clk 0:02:09]}  Nxd5 {[%clk 0:02:10]} 8. Nxd5 {[%clk 0:01:56]}  Bxd5 {[%clk 0:02:09]} 9. e4 {[%clk 0:01:55]}  Be6 {[%clk 0:01:53]} 10. d5 {[%clk 0:01:54]}  O-O {[%clk 0:01:52]} 11. dxc6 {[%clk 0:01:46]}  Bg4 {[%clk 0:01:43]} 12. cxb7 {[%clk 0:01:41]}  Rb8 {[%clk 0:01:41]} 13. h3 {[%clk 0:01:39]}  Bd7 {[%clk 0:01:29]} 14. Qxa7 {[%clk 0:01:27]}  Bb5 {[%clk 0:01:28]} 15. Bf1 {[%clk 0:01:10]}  Bd4 {[%clk 0:01:08]} 16. Qa5 {[%clk 0:01:06]}  Bc6 {[%clk 0:01:07]} 17. Ne2 {[%clk 0:00:42]}  Bxe4 {[%clk 0:01:01]} 18. Rh2 {[%clk 0:00:34]}  Rxb7 {[%clk 0:01:00]} 19. Bg2 {[%clk 0:00:29]}  Bxg2 {[%clk 0:00:49]} 20. Rxg2 {[%clk 0:00:30]}  Bxb2 {[%clk 0:00:49]} 21. Bxb2 {[%clk 0:00:27]}  Rxb2 {[%clk 0:00:48]} 22. Qc3 {[%clk 0:00:24]}  Qb8 {[%clk 0:00:45]} 23. f4 {[%clk 0:00:20]}  Rd8 {[%clk 0:00:41]} 24. Kf1 {[%clk 0:00:13]}  Rdd2 {[%clk 0:00:38]} 25. a4 {[%clk 0:00:11]}  Qb7 {[%clk 0:00:36]} 26. Re1 {[%clk 0:00:09]}  Rbc2 {[%clk 0:00:35]} 27. Qe3 {[%clk 0:00:07]}  e6 {[%clk 0:00:32]} 28. Rf2 {[%clk 0:00:07]}  Qh1+ {[%clk 0:00:31]} 0-1


[Site "https://www.chess.com"]

[Event "Titled Tuesday Blitz February 15 Early 2022"]
[White "Williams, Simon K"]
[Black "Dushyant Sharma"]
[WhiteFideId "404454"]
[BlackFideId "25065130"]
[WhiteElo "2468"]
[BlackElo "2012"]
[Result "0-1"]
[Round "08"]
[TimeControl "180+1"]
[Date "2022.02.15"]
[WhiteClock "0:00:02"]
[BlackClock "0:00:12"]

1. d4 {[%clk 0:03:00]}  d5 {[%clk 0:02:56]} 2. c4 {[%clk 0:03:00]}  e6 {[%clk 0:02:57]} 3. Nc3 {[%clk 0:02:58]}  c6 {[%clk 0:02:55]} 4. e4 {[%clk 0:02:57]}  dxe4 {[%clk 0:02:55]} 5. Nxe4 {[%clk 0:02:57]}  Bb4+ {[%clk 0:02:55]} 6. Bd2 {[%clk 0:02:57]}  Qxd4 {[%clk 0:02:55]} 7. Bxb4 {[%clk 0:02:57]}  Qxe4+ {[%clk 0:02:55]} 8. Be2 {[%clk 0:02:57]}  a5 {[%clk 0:02:26]} 9. Bf8 {[%clk 0:02:36]}  Ne7 {[%clk 0:02:07]} 10. Bxg7 {[%clk 0:02:14]}  Qxg2 {[%clk 0:01:38]} 11. Bxh8 {[%clk 0:01:32]}  Qxh1 {[%clk 0:01:37]} 12. Kf1 {[%clk 0:01:30]}  e5 {[%clk 0:01:12]} 13. Bf3 {[%clk 0:01:11]}  Qxh2 {[%clk 0:01:02]} 14. Qd6 {[%clk 0:01:02]}  Bh3+ {[%clk 0:00:47]} 15. Ke2 {[%clk 0:00:56]}  Nd7 {[%clk 0:00:40]} 16. Rd1 {[%clk 0:00:40]}  Be6 {[%clk 0:00:28]} 17. b3 {[%clk 0:00:17]}  Nf5 {[%clk 0:00:24]} 18. Qd3 {[%clk 0:00:09]}  Nd4+ {[%clk 0:00:17]} 19. Kd2 {[%clk 0:00:09]}  Qxf2+ {[%clk 0:00:17]} 20. Be2 {[%clk 0:00:06]}  a4 {[%clk 0:00:14]} 21. b4 {[%clk 0:00:03]}  Nb6 {[%clk 0:00:12]} 22. Kc3 {[%clk 0:00:02]}  Bxc4 {[%clk 0:00:12]} 0-1


[Site "https://www.chess.com"]

[Event "Titled Tuesday Blitz February 15 Early 2022"]
[White "Yuan, Qingyu"]
[Black "Sokolovsky, Yahli"]
[WhiteFideId "8609772"]
[BlackFideId "2820242"]
[WhiteElo "2359"]
[BlackElo "1770"]
[Result "1-0"]
[Round "08"]
[TimeControl "180+1"]
[Date "2022.02.15"]
[WhiteClock "0:00:22"]
[BlackClock "0:00:01"]

1. Nf3 {[%clk 0:03:00]}  d5 {[%clk 0:02:58]} 2. g3 {[%clk 0:03:01]}  c5 {[%clk 0:02:55]} 3. Bg2 {[%clk 0:03:01]}  Nc6 {[%clk 0:02:55]} 4. d4 {[%clk 0:03:02]}  cxd4 {[%clk 0:02:55]} 5. Nxd4 {[%clk 0:03:02]}  e5 {[%clk 0:02:55]} 6. Nxc6 {[%clk 0:03:02]}  bxc6 {[%clk 0:02:56]} 7. c4 {[%clk 0:03:03]}  Be6 {[%clk 0:02:56]} 8. O-O {[%clk 0:03:00]}  Nf6 {[%clk 0:02:56]} 9. Nc3 {[%clk 0:02:47]}  Be7 {[%clk 0:02:53]} 10. Bg5 {[%clk 0:02:35]}  e4 {[%clk 0:02:23]} 11. Qa4 {[%clk 0:02:24]}  O-O {[%clk 0:02:05]} 12. Qxc6 {[%clk 0:02:24]}  Rc8 {[%clk 0:02:05]} 13. Qa6 {[%clk 0:02:24]}  Rxc4 {[%clk 0:02:05]} 14. Qxa7 {[%clk 0:02:18]}  Bc5 {[%clk 0:01:33]} 15. Qa6 {[%clk 0:02:07]}  Qc7 {[%clk 0:01:06]} 16. Bxf6 {[%clk 0:01:55]}  gxf6 {[%clk 0:01:07]} 17. Rfd1 {[%clk 0:01:54]}  Qe5 {[%clk 0:00:54]} 18. e3 {[%clk 0:01:39]}  Rb8 {[%clk 0:00:48]} 19. Rab1 {[%clk 0:01:00]}  Kg7 {[%clk 0:00:27]} 20. Ne2 {[%clk 0:00:47]}  Rxb2 {[%clk 0:00:10]} 21. Rxb2 {[%clk 0:00:46]}  Qxb2 {[%clk 0:00:11]} 22. Nf4 {[%clk 0:00:47]}  Rc2 {[%clk 0:00:06]} 23. Rf1 {[%clk 0:00:40]}  Qxa2 {[%clk 0:00:02]} 24. Nxe6+ {[%clk 0:00:40]}  fxe6 {[%clk 0:00:02]} 25. Qxe6 {[%clk 0:00:41]}  Bxe3 {[%clk 0:00:02]} 26. Qg4+ {[%clk 0:00:30]}  Kf8 {[%clk 0:00:02]} 27. Qf5 {[%clk 0:00:24]}  Rxf2 {[%clk 0:00:02]} 28. Rxf2 {[%clk 0:00:24]}  Bxf2+ {[%clk 0:00:02]} 29. Qxf2 {[%clk 0:00:24]}  Qxf2+ {[%clk 0:00:02]} 30. Kxf2 {[%clk 0:00:24]}  Ke7 {[%clk 0:00:03]} 31. Ke3 {[%clk 0:00:24]}  Ke6 {[%clk 0:00:04]} 32. Kd4 {[%clk 0:00:25]}  Kd6 {[%clk 0:00:05]} 33. Bh3 {[%clk 0:00:25]}  h6 {[%clk 0:00:05]} 34. Bf5 {[%clk 0:00:26]}  Ke7 {[%clk 0:00:02]} 35. Kxd5 {[%clk 0:00:24]}  e3 {[%clk 0:00:03]} 36. Bd3 {[%clk 0:00:25]}  f5 {[%clk 0:00:03]} 37. Kd4 {[%clk 0:00:24]}  Kf6 {[%clk 0:00:02]} 38. Kxe3 {[%clk 0:00:24]}  Kg5 {[%clk 0:00:03]} 39. Be2 {[%clk 0:00:21]}  h5 {[%clk 0:00:02]} 40. h4+ {[%clk 0:00:20]}  Kg6 {[%clk 0:00:03]} 41. Kf4 {[%clk 0:00:21]}  Kf6 {[%clk 0:00:01]} 42. Bc4 {[%clk 0:00:21]}  Kg6 {[%clk 0:00:01]} 43. Ke5 {[%clk 0:00:22]} 1-0


[Site "https://www.chess.com"]

[Event "Titled Tuesday Blitz February 15 Early 2022"]
[White "Zheenbekov, Nurgazy"]
[Black "Matveeva, Olga"]
[WhiteFideId "13800485"]
[BlackFideId "24107018"]
[WhiteElo "1959"]
[BlackElo "2083"]
[Result "1-0"]
[Round "08"]
[TimeControl "180+1"]
[Date "2022.02.15"]
[WhiteClock "0:00:42"]
[BlackClock "0:00:01"]

1. e4 {[%clk 0:02:57]}  e6 {[%clk 0:02:58]} 2. d4 {[%clk 0:02:56]}  d5 {[%clk 0:02:57]} 3. Nc3 {[%clk 0:02:56]}  Bb4 {[%clk 0:02:56]} 4. e5 {[%clk 0:02:56]}  c5 {[%clk 0:02:53]} 5. a3 {[%clk 0:02:56]}  Bxc3+ {[%clk 0:02:51]} 6. bxc3 {[%clk 0:02:56]}  Ne7 {[%clk 0:02:48]} 7. Nf3 {[%clk 0:02:56]}  b6 {[%clk 0:02:45]} 8. Bb5+ {[%clk 0:02:56]}  Bd7 {[%clk 0:02:42]} 9. Bd3 {[%clk 0:02:55]}  Ba4 {[%clk 0:02:38]} 10. O-O {[%clk 0:02:43]}  c4 {[%clk 0:02:35]} 11. Be2 {[%clk 0:02:42]}  Na6 {[%clk 0:02:33]} 12. Ne1 {[%clk 0:02:29]}  Nc7 {[%clk 0:02:27]} 13. f4 {[%clk 0:02:28]}  Qd7 {[%clk 0:02:08]} 14. Bg4 {[%clk 0:02:28]}  h5 {[%clk 0:02:04]} 15. Bh3 {[%clk 0:02:28]}  g6 {[%clk 0:02:03]} 16. Be3 {[%clk 0:02:28]}  Nf5 {[%clk 0:01:51]} 17. Bf2 {[%clk 0:02:28]}  O-O-O {[%clk 0:01:46]} 18. Bxf5 {[%clk 0:02:27]}  exf5 {[%clk 0:01:32]} 19. Bh4 {[%clk 0:02:27]}  Rde8 {[%clk 0:01:32]} 20. Bf6 {[%clk 0:02:23]}  Rhg8 {[%clk 0:01:29]} 21. Nf3 {[%clk 0:02:23]}  Ne6 {[%clk 0:01:28]} 22. Ng5 {[%clk 0:02:13]}  Nxg5 {[%clk 0:01:22]} 23. Bxg5 {[%clk 0:02:13]}  Re6 {[%clk 0:01:20]} 24. Rb1 {[%clk 0:02:13]}  Kb7 {[%clk 0:01:13]} 25. Rb4 {[%clk 0:02:13]}  Ka8 {[%clk 0:01:12]} 26. Qd2 {[%clk 0:02:13]}  Rc8 {[%clk 0:01:08]} 27. Rfb1 {[%clk 0:02:13]}  Rce8 {[%clk 0:01:07]} 28. Kf2 {[%clk 0:02:12]}  Rc8 {[%clk 0:01:05]} 29. Ke1 {[%clk 0:02:10]}  Rce8 {[%clk 0:01:05]} 30. Kd1 {[%clk 0:02:10]}  Rc8 {[%clk 0:01:03]} 31. Qf2 {[%clk 0:02:10]}  Rce8 {[%clk 0:00:57]} 32. Kd2 {[%clk 0:02:10]}  Rc8 {[%clk 0:00:56]} 33. Re1 {[%clk 0:02:10]}  Rce8 {[%clk 0:00:55]} 34. h3 {[%clk 0:02:10]}  Rh8 {[%clk 0:00:54]} 35. Bf6 {[%clk 0:02:07]}  Rhe8 {[%clk 0:00:53]} 36. g4 {[%clk 0:02:07]}  fxg4 {[%clk 0:00:52]} 37. hxg4 {[%clk 0:02:07]}  hxg4 {[%clk 0:00:52]} 38. Rh1 {[%clk 0:02:04]}  Bc6 {[%clk 0:00:46]} 39. Bg5 {[%clk 0:01:59]}  Qb7 {[%clk 0:00:38]} 40. Rh7 {[%clk 0:01:54]}  Rc8 {[%clk 0:00:20]} 41. Qh4 {[%clk 0:01:53]}  Be8 {[%clk 0:00:19]} 42. Qxg4 {[%clk 0:01:52]}  Qa6 {[%clk 0:00:18]} 43. Qg2 {[%clk 0:01:47]}  Qb7 {[%clk 0:00:15]} 44. Rh8 {[%clk 0:01:43]}  a5 {[%clk 0:00:14]} 45. Rb1 {[%clk 0:01:42]}  Qc6 {[%clk 0:00:14]} 46. Rbh1 {[%clk 0:01:41]}  b5 {[%clk 0:00:14]} 47. Rf8 {[%clk 0:01:39]}  b4 {[%clk 0:00:13]} 48. axb4 {[%clk 0:01:38]}  axb4 {[%clk 0:00:13]} 49. Ra1+ {[%clk 0:01:39]}  Kb7 {[%clk 0:00:13]} 50. cxb4 {[%clk 0:01:30]}  c3+ {[%clk 0:00:13]} 51. Ke3 {[%clk 0:01:30]}  Qc4 {[%clk 0:00:13]} 52. Ra5 {[%clk 0:01:18]}  Qxb4 {[%clk 0:00:11]} 53. Qxd5+ {[%clk 0:01:16]}  Bc6 {[%clk 0:00:09]} 54. Rxf7+ {[%clk 0:01:16]}  Kb6 {[%clk 0:00:08]} 55. Qc5+ {[%clk 0:01:07]}  Qxc5 {[%clk 0:00:07]} 56. Rxc5 {[%clk 0:01:07]}  Rh8 {[%clk 0:00:06]} 57. Rxc3 {[%clk 0:01:02]}  Rh3+ {[%clk 0:00:05]} 58. Kd2 {[%clk 0:01:02]}  Rh2+ {[%clk 0:00:05]} 59. Kc1 {[%clk 0:01:02]}  Bd5 {[%clk 0:00:04]} 60. Rc5 {[%clk 0:00:58]}  Be4 {[%clk 0:00:03]} 61. Rf6 {[%clk 0:00:57]}  Rxf6 {[%clk 0:00:03]} 62. exf6 {[%clk 0:00:57]}  Rh8 {[%clk 0:00:02]} 63. Re5 {[%clk 0:00:45]}  Bf5 {[%clk 0:00:01]} 64. f7 {[%clk 0:00:42]} 1-0


[Site "https://www.chess.com"]

[Event "Titled Tuesday Blitz February 15 Early 2022"]
[White "Aaditya Dhingra"]
[Black "Korchmar, Vasiliy"]
[WhiteFideId "25678191"]
[BlackFideId "24131750"]
[WhiteElo "1789"]
[BlackElo "2370"]
[Result "1-0"]
[Round "09"]
[TimeControl "180+1"]
[Date "2022.02.15"]
[WhiteClock "0:00:04"]
[BlackClock "0:00:01"]

1. e4 {[%clk 0:03:00]}  c5 {[%clk 0:02:55]} 2. Nf3 {[%clk 0:02:59]}  d6 {[%clk 0:02:55]} 3. d4 {[%clk 0:02:58]}  cxd4 {[%clk 0:02:56]} 4. Nxd4 {[%clk 0:02:58]}  Nf6 {[%clk 0:02:56]} 5. f3 {[%clk 0:02:57]}  e5 {[%clk 0:02:55]} 6. Nb3 {[%clk 0:02:57]}  Be6 {[%clk 0:02:56]} 7. c4 {[%clk 0:02:56]}  Nbd7 {[%clk 0:02:56]} 8. Nc3 {[%clk 0:02:55]}  Rc8 {[%clk 0:02:56]} 9. Be3 {[%clk 0:02:46]}  Bxc4 {[%clk 0:02:54]} 10. Bxc4 {[%clk 0:02:46]}  Rxc4 {[%clk 0:02:55]} 11. Bxa7 {[%clk 0:02:44]}  b6 {[%clk 0:02:54]} 12. Nb5 {[%clk 0:02:39]}  d5 {[%clk 0:02:50]} 13. O-O {[%clk 0:02:04]}  dxe4 {[%clk 0:02:36]} 14. fxe4 {[%clk 0:02:00]}  Be7 {[%clk 0:01:52]} 15. Qd3 {[%clk 0:01:23]}  Rxe4 {[%clk 0:01:39]} 16. a4 {[%clk 0:01:04]}  O-O {[%clk 0:01:37]} 17. a5 {[%clk 0:01:00]}  Nc5 {[%clk 0:01:07]} 18. Qxd8 {[%clk 0:00:22]}  Rxd8 {[%clk 0:01:08]} 19. Bxb6 {[%clk 0:00:14]}  Nxb3 {[%clk 0:01:06]} 20. Bxd8 {[%clk 0:00:14]}  Bxd8 {[%clk 0:01:06]} 21. a6 {[%clk 0:00:11]}  Nxa1 {[%clk 0:01:02]} 22. Rxa1 {[%clk 0:00:10]}  Bb6+ {[%clk 0:01:02]} 23. Kh1 {[%clk 0:00:08]}  Rb4 {[%clk 0:00:49]} 24. Nd6 {[%clk 0:00:08]}  Rxb2 {[%clk 0:00:43]} 25. Nc4 {[%clk 0:00:06]}  Nd7 {[%clk 0:00:04]} 26. Nxb2 {[%clk 0:00:05]}  Ba7 {[%clk 0:00:04]} 27. Nc4 {[%clk 0:00:05]}  Kf8 {[%clk 0:00:02]} 28. Na5 {[%clk 0:00:05]}  Nb8 {[%clk 0:00:01]} 29. Nc4 {[%clk 0:00:03]}  e4 {[%clk 0:00:01]} 30. Nd6 {[%clk 0:00:03]}  e3 {[%clk 0:00:01]} 31. Nc8 {[%clk 0:00:04]} 1-0


[Site "https://www.chess.com"]

[Event "Titled Tuesday Blitz February 15 Early 2022"]
[White "Agasarov, Benik"]
[Black "Thunderbolt135"]
[WhiteFideId "13314823"]
[WhiteElo "2605"]
[BlackElo "2753"]
[Result "0-1"]
[Round "09"]
[TimeControl "180+1"]
[Date "2022.02.15"]
[WhiteClock "0:00:05"]
[BlackClock "0:00:18"]

1. e4 {[%clk 0:02:27]}  c5 {[%clk 0:03:00]} 2. Nf3 {[%clk 0:02:27]}  d6 {[%clk 0:03:00]} 3. d4 {[%clk 0:02:27]}  cxd4 {[%clk 0:03:01]} 4. Nxd4 {[%clk 0:02:26]}  Nf6 {[%clk 0:03:02]} 5. Nc3 {[%clk 0:02:26]}  Nc6 {[%clk 0:03:03]} 6. Bc4 {[%clk 0:02:24]}  e6 {[%clk 0:03:03]} 7. O-O {[%clk 0:02:23]}  Be7 {[%clk 0:03:02]} 8. Kh1 {[%clk 0:02:20]}  O-O {[%clk 0:03:02]} 9. f4 {[%clk 0:02:20]}  Bd7 {[%clk 0:02:55]} 10. Nxc6 {[%clk 0:02:14]}  Bxc6 {[%clk 0:02:56]} 11. Bd3 {[%clk 0:02:14]}  b5 {[%clk 0:02:40]} 12. a3 {[%clk 0:02:08]}  a5 {[%clk 0:02:30]} 13. e5 {[%clk 0:01:49]}  dxe5 {[%clk 0:02:31]} 14. fxe5 {[%clk 0:01:49]}  Nd7 {[%clk 0:02:31]} 15. Bf4 {[%clk 0:01:46]}  b4 {[%clk 0:01:57]} 16. Ne4 {[%clk 0:01:45]}  Nc5 {[%clk 0:01:52]} 17. Nf6+ {[%clk 0:00:56]}  Bxf6 {[%clk 0:01:20]} 18. exf6 {[%clk 0:00:54]}  Nxd3 {[%clk 0:00:58]} 19. cxd3 {[%clk 0:00:38]}  Qxf6 {[%clk 0:00:53]} 20. Qe2 {[%clk 0:00:27]}  Qg6 {[%clk 0:00:43]} 21. Be5 {[%clk 0:00:21]}  Rfd8 {[%clk 0:00:38]} 22. d4 {[%clk 0:00:20]}  f6 {[%clk 0:00:36]} 23. Bc7 {[%clk 0:00:18]}  Re8 {[%clk 0:00:34]} 24. Bg3 {[%clk 0:00:18]}  Bd5 {[%clk 0:00:30]} 25. axb4 {[%clk 0:00:18]}  axb4 {[%clk 0:00:31]} 26. Qd2 {[%clk 0:00:15]}  Rxa1 {[%clk 0:00:29]} 27. Rxa1 {[%clk 0:00:14]}  b3 {[%clk 0:00:30]} 28. Rc1 {[%clk 0:00:13]}  h5 {[%clk 0:00:30]} 29. Qf2 {[%clk 0:00:11]}  Kh7 {[%clk 0:00:30]} 30. Bf4 {[%clk 0:00:10]}  Ra8 {[%clk 0:00:27]} 31. h4 {[%clk 0:00:05]}  Ra2 {[%clk 0:00:26]} 32. Rg1 {[%clk 0:00:05]}  Qe4 {[%clk 0:00:26]} 33. Bh2 {[%clk 0:00:04]}  Qg4 {[%clk 0:00:24]} 34. Qd2 {[%clk 0:00:04]}  Ra4 {[%clk 0:00:22]} 35. Qe3 {[%clk 0:00:03]}  Rxd4 {[%clk 0:00:21]} 36. Qg3 {[%clk 0:00:02]}  Qxg3 {[%clk 0:00:20]} 37. Bxg3 {[%clk 0:00:03]}  Rd2 {[%clk 0:00:20]} 38. Bf4 {[%clk 0:00:03]}  Rxb2 {[%clk 0:00:20]} 39. Kh2 {[%clk 0:00:04]}  Rc2 {[%clk 0:00:21]} 40. Kh3 {[%clk 0:00:05]}  Rxg2 {[%clk 0:00:19]} 41. Rb1 {[%clk 0:00:01]}  Rg4 {[%clk 0:00:19]} 42. Bg3 {[%clk 0:00:02]}  e5 {[%clk 0:00:19]} 43. Rb2 {[%clk 0:00:03]}  Be6 {[%clk 0:00:19]} 44. Rg2 {[%clk 0:00:04]}  b2 {[%clk 0:00:18]} 45. Kh2 {[%clk 0:00:04]}  b1=Q {[%clk 0:00:17]} 46. Rf2 {[%clk 0:00:04]}  Qe4 {[%clk 0:00:17]} 47. Rxf6 {[%clk 0:00:04]}  Rxh4+ {[%clk 0:00:17]} 48. Bxh4 {[%clk 0:00:04]}  Qxh4+ {[%clk 0:00:18]} 49. Kg1 {[%clk 0:00:04]}  Qxf6 {[%clk 0:00:18]} 50. Kh2 {[%clk 0:00:05]}  Bd5 {[%clk 0:00:18]} 51. Kh3 {[%clk 0:00:04]}  Qf5+ {[%clk 0:00:18]} 52. Kh2 {[%clk 0:00:04]}  Qf4+ {[%clk 0:00:18]} 53. Kg1 {[%clk 0:00:04]}  Qg3+ {[%clk 0:00:17]} 54. Kf1 {[%clk 0:00:05]}  Bc4# {[%clk 0:00:18]} 0-1


[Site "https://www.chess.com"]

[Event "Titled Tuesday Blitz February 15 Early 2022"]
[White "Annaberdiyev, Babageldi"]
[Black "Lazavik, Denis"]
[WhiteFideId "14000385"]
[BlackFideId "13515110"]
[WhiteElo "2332"]
[BlackElo "2436"]
[Result "1-0"]
[Round "09"]
[TimeControl "180+1"]
[Date "2022.02.15"]
[WhiteClock "0:00:39"]
[BlackClock "0:00:03"]

1. e4 {[%clk 0:03:00]}  e5 {[%clk 0:03:00]} 2. Nf3 {[%clk 0:03:01]}  Nc6 {[%clk 0:03:00]} 3. Bc4 {[%clk 0:03:00]}  Bc5 {[%clk 0:03:00]} 4. c3 {[%clk 0:03:00]}  Nf6 {[%clk 0:03:00]} 5. d4 {[%clk 0:03:00]}  exd4 {[%clk 0:02:58]} 6. cxd4 {[%clk 0:03:01]}  Bb4+ {[%clk 0:02:56]} 7. Nc3 {[%clk 0:03:01]}  Nxe4 {[%clk 0:02:52]} 8. O-O {[%clk 0:03:02]}  Bxc3 {[%clk 0:02:50]} 9. d5 {[%clk 0:03:02]}  Bf6 {[%clk 0:02:43]} 10. Re1 {[%clk 0:03:01]}  Ne7 {[%clk 0:02:44]} 11. Rxe4 {[%clk 0:03:00]}  d6 {[%clk 0:02:45]} 12. Bg5 {[%clk 0:03:01]}  Bxg5 {[%clk 0:02:42]} 13. Nxg5 {[%clk 0:03:02]}  h6 {[%clk 0:02:26]} 14. Bb5+ {[%clk 0:03:01]}  Bd7 {[%clk 0:02:19]} 15. Qe2 {[%clk 0:03:00]}  Bxb5 {[%clk 0:01:49]} 16. Qxb5+ {[%clk 0:03:01]}  Qd7 {[%clk 0:01:49]} 17. Qe2 {[%clk 0:03:01]}  hxg5 {[%clk 0:01:37]} 18. Re1 {[%clk 0:02:59]}  O-O {[%clk 0:01:37]} 19. Rxe7 {[%clk 0:02:56]}  Qf5 {[%clk 0:01:38]} 20. Qc4 {[%clk 0:02:46]}  Rac8 {[%clk 0:01:31]} 21. h3 {[%clk 0:02:39]}  a6 {[%clk 0:01:17]} 22. b3 {[%clk 0:02:25]}  c6 {[%clk 0:01:13]} 23. dxc6 {[%clk 0:02:13]}  Rxc6 {[%clk 0:01:13]} 24. Qd4 {[%clk 0:02:13]}  Rc2 {[%clk 0:01:08]} 25. a4 {[%clk 0:02:06]}  b5 {[%clk 0:01:05]} 26. Ra7 {[%clk 0:02:03]}  bxa4 {[%clk 0:01:03]} 27. bxa4 {[%clk 0:02:04]}  Rfc8 {[%clk 0:00:51]} 28. Ree7 {[%clk 0:01:57]}  R8c4 {[%clk 0:00:34]} 29. Qe3 {[%clk 0:01:52]}  Qf4 {[%clk 0:00:30]} 30. g3 {[%clk 0:01:35]}  Qxe3 {[%clk 0:00:29]} 31. Rxe3 {[%clk 0:01:36]}  Rc7 {[%clk 0:00:09]} 32. Rxa6 {[%clk 0:01:35]}  Ra2 {[%clk 0:00:09]} 33. Rf3 {[%clk 0:01:16]}  g6 {[%clk 0:00:08]} 34. Kg2 {[%clk 0:01:08]}  d5 {[%clk 0:00:06]} 35. Ra5 {[%clk 0:01:04]}  Rd7 {[%clk 0:00:06]} 36. Rd3 {[%clk 0:01:02]}  d4 {[%clk 0:00:06]} 37. Rxg5 {[%clk 0:00:58]}  Rxa4 {[%clk 0:00:05]} 38. Rc5 {[%clk 0:00:53]}  Kg7 {[%clk 0:00:05]} 39. h4 {[%clk 0:00:51]}  Rd6 {[%clk 0:00:05]} 40. Rc7 {[%clk 0:00:42]}  Rf6 {[%clk 0:00:05]} 41. Rc2 {[%clk 0:00:38]}  Rb4 {[%clk 0:00:03]} 42. Rcd2 {[%clk 0:00:39]} 1-0


[Site "https://www.chess.com"]

[Event "Titled Tuesday Blitz February 15 Early 2022"]
[White "Aradhya, Garg"]
[Black "Vidit, Santosh Gujrathi"]
[WhiteFideId "25006746"]
[BlackFideId "5029465"]
[WhiteElo "2169"]
[BlackElo "2654"]
[Result "1-0"]
[Round "09"]
[TimeControl "180+1"]
[Date "2022.02.15"]
[WhiteClock "0:00:50"]
[BlackClock "0:00:01"]

1. d4 {[%clk 0:03:00]}  Nf6 {[%clk 0:03:00]} 2. c4 {[%clk 0:03:01]}  e6 {[%clk 0:03:00]} 3. Nf3 {[%clk 0:03:01]}  d5 {[%clk 0:03:00]} 4. Nc3 {[%clk 0:03:00]}  a6 {[%clk 0:03:00]} 5. cxd5 {[%clk 0:02:59]}  exd5 {[%clk 0:03:01]} 6. Qb3 {[%clk 0:02:59]}  Be7 {[%clk 0:02:55]} 7. Bf4 {[%clk 0:02:57]}  O-O {[%clk 0:02:53]} 8. e3 {[%clk 0:02:57]}  c6 {[%clk 0:02:47]} 9. Bd3 {[%clk 0:02:57]}  Nbd7 {[%clk 0:02:42]} 10. O-O {[%clk 0:02:57]}  Re8 {[%clk 0:02:42]} 11. Rac1 {[%clk 0:02:56]}  Nf8 {[%clk 0:02:39]} 12. h3 {[%clk 0:02:55]}  Ng6 {[%clk 0:02:34]} 13. Qc2 {[%clk 0:02:35]}  Bd6 {[%clk 0:02:23]} 14. Bxd6 {[%clk 0:02:30]}  Qxd6 {[%clk 0:02:24]} 15. a3 {[%clk 0:02:30]}  Ne7 {[%clk 0:02:20]} 16. Ne5 {[%clk 0:02:28]}  g6 {[%clk 0:02:20]} 17. g4 {[%clk 0:02:21]}  Nd7 {[%clk 0:02:10]} 18. f4 {[%clk 0:02:17]}  Kg7 {[%clk 0:02:01]} 19. Qf2 {[%clk 0:02:11]}  f6 {[%clk 0:01:58]} 20. Nf3 {[%clk 0:02:11]}  Nf8 {[%clk 0:01:48]} 21. Rce1 {[%clk 0:01:50]}  Ng8 {[%clk 0:01:42]} 22. e4 {[%clk 0:01:43]}  Qxf4 {[%clk 0:01:35]} 23. exd5 {[%clk 0:01:42]}  Bd7 {[%clk 0:01:28]} 24. Qh2 {[%clk 0:01:33]}  Qxh2+ {[%clk 0:01:23]} 25. Kxh2 {[%clk 0:01:33]}  Rad8 {[%clk 0:01:06]} 26. dxc6 {[%clk 0:01:28]}  Rxe1 {[%clk 0:00:59]} 27. c7 {[%clk 0:01:25]}  Ree8 {[%clk 0:00:57]} 28. cxd8=Q {[%clk 0:01:24]}  Rxd8 {[%clk 0:00:58]} 29. Be4 {[%clk 0:01:23]}  b6 {[%clk 0:00:46]} 30. d5 {[%clk 0:01:21]}  Ne7 {[%clk 0:00:45]} 31. Nd4 {[%clk 0:01:21]}  Nc8 {[%clk 0:00:42]} 32. Bd3 {[%clk 0:01:18]}  b5 {[%clk 0:00:40]} 33. Ne4 {[%clk 0:01:18]}  Nb6 {[%clk 0:00:13]} 34. Nxf6 {[%clk 0:01:12]}  a5 {[%clk 0:00:02]} 35. Be4 {[%clk 0:01:08]}  Nc4 {[%clk 0:00:02]} 36. Rf2 {[%clk 0:01:07]}  a4 {[%clk 0:00:02]} 37. Nxd7 {[%clk 0:01:01]}  Rxd7 {[%clk 0:00:02]} 38. Ne6+ {[%clk 0:01:01]}  Nxe6 {[%clk 0:00:02]} 39. dxe6 {[%clk 0:01:02]}  Re7 {[%clk 0:00:03]} 40. Bc6 {[%clk 0:00:51]}  Nd6 {[%clk 0:00:01]} 41. Bd7 {[%clk 0:00:50]} 1-0


[Site "https://www.chess.com"]